bitfinex/quotes_ETHUSD_20241108
["timestamp","ask_amount","ask_price","bid_price","bid_amount"]
[1731027987898,0.7757,2917.5,2916.4,4.05544052]
[1731027988103,0.7757,2917.3,2916.4,4.05544052]
[1731027988443,0.7757,2917.3,2916.4,4.46098457]
[1731027989229,0.7757,2917.3,2916.5,0.06856096]
[1731027990031,0.7757,2917.3,2916.4,4.05544052]
[1731027990232,0.7757,2917.3,2916.0,0.8242]
[1731027990233,0.55,2917.2,2916.0,4.05544052]
[1731027990458,0.7946,2917.0,2916.0,4.46098457]
[1731027990769,0.7946,2916.8,2915.6,4.05544052]
[1731027990927,0.07562023,2916.7,2915.6,4.05544052]
[1731027991928,0.7946,2916.8,2915.6,4.05544052]
[1731027993844,0.7687,2916.5,2915.3,3.0]
[1731027994166,0.7687,2916.5,2915.4,0.77412493]
[1731027995255,0.7687,2916.5,2915.4,1.02753221]
[1731027996066,0.7687,2916.5,2915.4,0.70554405]
[1731027996633,0.7687,2916.5,2915.4,0.95898669]
[1731027996833,0.7687,2916.5,2915.5,0.39589867]
[1731027997035,0.7687,2916.5,2915.5,0.64933957]
[1731027997991,0.7687,2916.5,2915.5,0.39589867]
[1731027999297,0.7687,2916.5,2915.5,0.64938593]
[1731027999461,0.07562023,2916.4,2915.5,0.64938593]
[1731027999798,0.07562023,2916.4,2915.5,0.39589867]
[1731027999992,0.8252,2916.3,2915.5,0.39589867]
[1731028000759,0.8252,2916.3,2915.4,0.70554405]
[1731028000988,0.8252,2916.3,2915.3,0.25349262]
[1731028001156,0.8252,2916.3,2914.9,0.25349262]
[1731028001579,0.07562023,2916.2,2914.9,0.25349262]
[1731028002002,0.8252,2916.3,2914.9,0.25349262]
[1731028002182,0.8252,2916.3,2915.2,4.05544052]
[1731028002975,0.8252,2916.3,2915.3,0.06858453]
[1731028003901,0.8252,2916.3,2915.2,4.05544052]
[1731028005099,0.55,2915.8,2914.5,1.42201904]
[1731028005270,0.84992023,2915.7,2914.5,2.055137]
[1731028005532,0.7743,2915.5,2914.5,1.42201904]
[1731028005709,0.84992023,2915.4,2914.5,1.42201904]
[1731028006159,0.7652,2915.2,2914.5,1.42201904]
[1731028006366,0.7652,2915.0,2914.5,1.42201904]
[1731028006518,0.84692023,2914.9,2914.5,1.42201904]
[1731028006855,0.7713,2914.7,2914.5,1.42201904]
[1731028007145,0.84692023,2914.7,2914.5,1.42201904]
[1731028007653,0.7713,2914.7,2914.5,1.42201904]
[1731028008150,0.84932023,2914.6,2914.5,1.42201904]
[1731028008356,1.39932023,2914.6,2914.5,1.42201904]
[1731028008857,1.3237,2914.6,2914.5,1.42201904]
[1731028009726,0.7616,2914.4,2913.3,3.52749599]
[1731028009955,0.7616,2914.2,2913.4,0.75829365]
[1731028011257,0.03280468,2914.1,2913.4,0.75829365]
[1731028011430,0.03280468,2914.1,2913.2,4.05544052]
[1731028012544,0.55,2914.0,2913.2,4.05544052]
[1731028012740,0.03280468,2913.9,2912.9,3.0]
[1731028012950,0.7768,2914.1,2912.9,3.7616]
[1731028013242,0.7768,2913.9,2913.0,0.85809405]
[1731028013549,0.03280468,2913.8,2913.1,0.06864323]
[1731028013755,0.03280468,2913.8,2913.0,0.85809405]
[1731028014464,0.7768,2913.9,2913.2,4.05544052]
[1731028014624,0.7768,2913.9,2913.3,0.06864344]
[1731028014824,0.7768,2913.9,2913.3,0.48105184]
[1731028016750,0.03280468,2913.8,2912.8,4.83224052]
[1731028016953,0.8014,2913.7,2912.8,4.05544052]
[1731028017122,0.55,2914.0,2911.4,12.23]
[1731028017123,0.8014,2913.4,2911.4,12.23]
[1731028017322,0.8014,2913.2,2912.5,0.7768]
[1731028017757,0.8014,2913.2,2912.6,0.0686596]
[1731028018060,0.8091,2913.0,2912.2,4.05544052]
[1731028018258,0.03280468,2912.9,2912.2,4.05544052]
[1731028018435,0.8091,2913.0,2912.2,4.05544052]
[1731028019663,0.7738,2912.8,2911.8,4.05544052]
[1731028019827,0.7738,2912.8,2911.8,4.86454052]
[1731028020031,0.7738,2912.8,2911.9,0.48645405]
[1731028020445,0.03280468,2912.7,2911.8,4.86454052]
[1731028020654,0.7746,2912.6,2911.8,4.05544052]
[1731028021375,0.7746,2912.6,2911.9,0.06867199]
[1731028022563,0.7746,2912.6,2911.4,19.28544052]
[1731028022731,0.7746,2912.6,2911.5,1.92854405]
[1731028023143,0.7746,2912.6,2911.5,2.70314405]
[1731028023667,0.7746,2912.6,2911.6,0.0686748]
[1731028024391,0.03280468,2912.5,2911.6,0.0686748]
[1731028024687,0.7585,2912.4,2911.5,2.70314405]
[1731028024886,0.7585,2912.4,2911.6,2.19885846]
[1731028025093,0.7585,2912.4,2911.7,0.06867472]
[1731028026353,0.7585,2912.4,2911.5,0.7746]
[1731028027095,0.7797,2912.2,2911.0,4.05544052]
[1731028027292,0.7797,2912.0,2911.1,0.06868652]
[1731028028812,0.7897,2911.8,2910.7,0.1378347]
[1731028028951,0.55,2911.5,2910.7,0.1378347]
[1731028029294,0.51923261,2912.1,2910.7,0.1378347]
[1731028029295,0.7897,2911.1,2910.7,0.1378347]
[1731028029858,0.7897,2911.1,2910.7,4.19327522]
[1731028030079,0.03280468,2912.0,2910.8,0.06869507]
[1731028030080,0.8136,2911.9,2910.8,0.06869507]
[1731028030356,0.8136,2911.9,2910.9,0.42619703]
[1731028030577,0.8136,2911.9,2911.0,0.06869064]
[1731028030888,0.8136,2911.9,2910.9,0.42619703]
[1731028031189,0.8136,2911.9,2911.0,0.06869063]
[1731028032053,0.8136,2911.9,2911.1,4.05544052]
[1731028032254,0.8136,2911.9,2911.2,0.40554405]
[1731028032696,0.8136,2911.9,2911.3,0.06868156]
[1731028033190,0.8136,2911.9,2911.2,0.40554405]
[1731028033862,0.8136,2911.9,2911.2,3.40554405]
[1731028034070,0.8136,2911.9,2911.5,4.05544052]
[1731028034267,0.8136,2911.9,2911.6,0.47422317]
[1731028035097,0.03280468,2913.2,2911.8,0.7792]
[1731028035098,0.8169,2913.1,2911.8,0.7792]
[1731028035279,0.8169,2913.1,2912.5,4.05544052]
[1731028035453,0.8169,2913.1,2912.5,16.69098457]
[1731028035769,0.8169,2914.0,2912.9,4.05544052]
[1731028035968,0.03280468,2913.9,2913.0,0.06864323]
[1731028036156,0.8169,2914.0,2913.1,0.41240838]
[1731028036357,0.8169,2914.0,2913.3,4.05544052]
[1731028036565,0.8169,2914.0,2913.7,4.05544052]
[1731028036769,0.8169,2914.0,2913.8,0.47417148]
[1731028036993,0.8169,2914.0,2913.3,4.05544052]
[1731028037462,0.8169,2914.0,2913.4,0.06863211]
[1731028037664,0.8169,2914.0,2913.3,4.05544052]
[1731028038059,0.8169,2914.0,2913.4,0.06863233]
[1731028038260,0.8169,2914.0,2913.7,4.05544052]
[1731028038460,0.8169,2914.0,2913.7,4.46098457]
[1731028039622,0.8169,2914.0,2913.3,4.05544052]
[1731028039901,0.8169,2914.0,2913.4,0.06863108]
[1731028041213,0.8169,2914.0,2913.3,4.05544052]
[1731028041497,0.8169,2914.0,2912.9,4.87114052]
[1731028041703,0.8169,2914.0,2912.9,4.05544052]
[1731028042009,0.8169,2914.0,2913.0,0.40554405]
[1731028042211,0.8169,2914.0,2912.6,12.23]
[1731028042368,0.8169,2914.0,2912.7,0.06864272]
[1731028043106,0.8169,2914.0,2912.9,4.05544052]
[1731028043409,0.8169,2914.0,2912.9,4.80634052]
[1731028043708,0.8169,2914.0,2913.0,3.48063405]
[1731028044787,0.8169,2914.0,2913.0,0.48063405]
[1731028045515,0.8169,2914.0,2912.9,4.05544052]
[1731028045719,0.8169,2914.0,2912.6,13.0439]
[1731028045720,0.8169,2914.0,2912.6,12.23]
[1731028046591,0.8169,2914.0,2912.9,4.05544052]
[1731028046799,0.8169,2914.0,2913.0,12.23]
[1731028049576,0.8169,2914.0,2913.1,0.06863939]
[1731028049912,0.8169,2914.0,2913.3,4.05544052]
[1731028050083,0.01,2915.3,2913.2,13.45986394]
[1731028050084,0.7572,2914.6,2913.7,4.05544052]
[1731028050288,0.7572,2914.6,2913.8,12.23]
[1731028052561,0.8047,2914.4,2913.8,12.23]
[1731028052747,0.58280468,2914.5,2913.8,12.23]
[1731028052748,0.8047,2914.3,2913.8,12.23]
[1731028055284,0.8138,2914.1,2913.8,12.23]
[1731028055646,0.8138,2914.1,2913.3,4.05544052]
[1731028055846,0.8138,2914.1,2913.3,4.46098457]
[1731028056780,0.8138,2914.1,2913.4,0.06863527]
[1731028058283,0.8138,2914.1,2913.7,4.05544052]
[1731028058444,0.804,2914.4,2913.7,4.05544052]
[1731028058644,0.04280468,2915.8,2914.1,4.05544052]
[1731028058847,0.8097,2915.5,2914.2,0.06861424]
[1731028059072,0.84250468,2915.4,2914.1,4.05544052]
[1731028060387,0.55,2915.3,2914.1,4.05544052]
[1731028060587,0.55,2915.1,2914.1,4.05544052]
[1731028060880,0.79440468,2915.0,2914.1,5.68398457]
[1731028061088,0.79440468,2915.0,2914.1,4.05544052]
[1731028062499,0.01,2915.6,2914.1,4.05544052]
[1731028062500,0.27661008,2915.5,2914.2,0.06861637]
[1731028062805,0.01,2915.9,2914.2,0.06861637]
[1731028063006,0.01,2915.9,2914.3,0.41340569]
[1731028065106,0.01,2915.9,2913.8,12.23]
[1731028065107,0.01,2915.6,2913.9,0.01]
[1731028065701,0.7562,2915.5,2913.9,0.01]
[1731028066029,0.7801,2915.3,2913.9,0.01]
[1731028066205,0.7801,2915.3,2914.0,1.224]
[1731028066379,0.7801,2915.3,2913.9,0.01]
[1731028067411,0.01,2915.6,2913.7,12.23]
[1731028067412,0.7936,2915.1,2913.7,12.23]
[1731028067710,0.7947,2914.9,2913.7,12.23]
[1731028067926,0.7947,2914.7,2913.8,0.06863413]
[1731028068134,0.7947,2914.7,2913.8,1.29849754]
[1731028068331,0.7947,2914.7,2913.8,0.06863413]
[1731028068612,0.7947,2914.7,2913.5,0.01]
[1731028068779,0.7947,2914.7,2913.5,0.07862963]
[1731028069319,0.7947,2914.7,2913.5,0.01]
[1731028069726,0.79367941,2914.7,2913.5,0.01]
[1731028069893,0.79367941,2914.7,2913.5,0.45709846]
[1731028070917,0.79367941,2914.7,2913.5,0.44709846]
[1731028071231,0.55,2914.6,2913.5,0.44709846]
[1731028071392,0.55,2914.6,2913.3,0.41554405]
[1731028071393,0.56,2914.8,2913.3,0.40554405]
[1731028071591,0.55,2914.7,2913.1,0.01]
[1731028072733,0.55,2914.5,2913.1,0.01]
[1731028073123,0.8,2914.4,2913.1,0.01]
[1731028074135,0.79967002,2914.4,2913.1,0.01]
[1731028075137,0.01,2914.0,2912.5,0.41554405]
[1731028075341,0.01,2914.0,2911.9,14.01609546]
[1731028075342,3.55,2913.9,2912.2,0.01]
[1731028075509,0.01,2913.8,2912.3,0.79967]
[1731028075708,0.55,2913.6,2912.1,0.7885]
[1731028075910,0.56,2913.6,2912.0,1.373385]
[1731028076231,0.56,2913.4,2911.5,4.85394052]
[1731028076402,0.01,2913.2,2911.5,4.85394052]
[1731028076709,0.55,2913.4,2910.7,0.1378347]
[1731028076710,0.01,2913.0,2911.6,1.373583]
[1731028076921,0.56,2913.0,2911.2,0.8145]
[1731028077229,0.764,2912.6,2911.2,1.383681]
[1731028077413,0.764,2912.6,2911.2,1.76691215]
[1731028077625,0.7766,2912.4,2910.9,0.8145]
[1731028077941,0.7766,2912.2,2911.1,0.764]
[1731028078553,0.55,2912.1,2911.1,0.764]
[1731028078706,0.7766,2911.8,2910.7,0.1378347]
[1731028078906,1.3266,2911.7,2910.7,0.1378347]
[1731028079506,1.01804544,2911.7,2910.7,0.1378347]
[1731028079849,0.7766,2911.7,2910.7,0.1378347]
[1731028080010,0.7766,2911.7,2910.7,4.19327522]
[1731028080203,0.7766,2911.7,2910.8,0.0687003]
[1731028080402,0.7766,2911.7,2910.9,1.25959755]
[1731028081219,0.7766,2911.7,2910.7,0.1378347]
[1731028082707,0.7766,2911.7,2910.7,0.1478347]
[1731028082946,0.7766,2911.7,2910.8,0.0687014]
[1731028084634,0.7766,2911.7,2910.8,0.06869758]
[1731028085225,0.7766,2911.7,2910.7,4.20327522]
[1731028085444,0.7766,2911.7,2910.8,0.42032752]
[1731028086551,0.7766,2911.7,2910.7,4.20327522]
[1731028086552,0.7766,2911.7,2910.7,0.1378347]
[1731028086736,0.7793,2911.5,2910.7,0.1378347]
[1731028087251,0.7793,2911.5,2910.8,0.06869937]
[1731028087460,0.7793,2911.5,2910.7,0.1378347]
[1731028088014,0.7793,2911.5,2910.8,0.06869936]
[1731028088440,0.7793,2911.5,2910.7,0.1378347]
[1731028088623,0.7793,2911.5,2910.8,0.01]
[1731028088825,0.7793,2911.5,2910.8,0.07869745]
[1731028089026,0.7793,2911.5,2910.9,0.42719727]
[1731028089247,1.13758757,2913.8,2910.9,0.42719727]
[1731028089248,0.7838,2912.6,2911.1,4.05544052]
[1731028090346,0.7838,2912.6,2911.2,0.06868961]
[1731028090515,0.7838,2912.6,2911.3,0.06868153]
[1731028090853,0.7838,2912.6,2911.5,4.06544052]
[1731028094955,0.7838,2912.6,2911.7,0.01]
[1731028095140,0.7838,2912.6,2911.9,0.01]
[1731028095455,0.7838,2912.6,2911.9,4.06544052]
[1731028095651,0.7838,2912.6,2912.0,0.47521133]
[1731028096066,0.01,2913.6,2912.4,0.01]
[1731028096067,0.7643,2913.6,2912.4,0.01]
[1731028096221,0.7643,2913.6,2912.7,4.05544052]
[1731028097217,0.7643,2913.6,2912.8,0.01]
[1731028100347,0.7643,2913.6,2912.7,4.82804052]
[1731028100672,0.7643,2913.6,2912.8,0.49280405]
[1731028101569,0.7643,2913.6,2913.1,4.05544052]
[1731028101778,0.824,2914.0,2913.4,0.01]
[1731028101928,0.824,2914.0,2913.5,4.05544052]
[1731028102125,0.824,2914.0,2913.6,0.40654405]
[1731028103288,0.824,2914.0,2913.2,0.01]
[1731028103567,0.824,2914.0,2912.9,12.23]
[1731028103753,0.824,2913.8,2912.7,4.05544052]
[1731028104159,0.824,2913.8,2912.3,4.06544052]
[1731028104160,0.55,2913.7,2912.3,4.06544052]
[1731028104363,0.55,2913.5,2912.3,4.05544052]
[1731028104560,0.824,2913.4,2911.9,4.06544052]
[1731028105263,0.7861,2913.2,2911.9,4.05544052]
[1731028105634,0.8068,2913.0,2911.9,4.05544052]
[1731028105838,0.8068,2912.8,2911.5,4.06544052]
[1731028106031,0.8068,2912.8,2911.6,0.40654405]
[1731028108451,0.70554405,2914.5,2911.1,2.132514]
[1731028108452,0.7888,2912.4,2911.1,2.132514]
[1731028108653,0.55,2912.3,2911.1,2.132514]
[1731028108964,0.7787,2912.0,2911.1,2.132514]
[1731028109179,0.55,2911.9,2911.1,2.132514]
[1731028109349,0.7787,2911.8,2911.1,2.132514]
[1731028110149,0.55,2911.7,2911.1,2.132514]
[1731028110462,0.7808,2911.8,2911.1,2.132514]
[1731028111061,0.7629,2911.6,2911.1,2.132514]
[1731028111263,0.763,2911.4,2911.1,1.72011081]
[1731028111452,0.763,2911.2,2911.1,1.72011081]
[1731028111863,0.763,2911.2,2911.0,1.6243145]
[1731028112065,0.01,2911.4,2911.0,1.6243145]
[1731028112066,0.786,2911.1,2911.0,0.36771057]
[1731028112267,0.55,2911.0,2910.7,0.1378347]
[1731028112483,0.786,2910.9,2910.7,0.1378347]
[1731028114278,0.786,2910.9,2908.8,0.02]
[1731028114279,4.435,2910.8,2909.6,0.786]
[1731028114487,0.55,2910.3,2908.6,0.01]
[1731028114793,0.765,2909.8,2908.2,0.01]
[1731028115013,0.765,2909.6,2908.2,0.01]
[1731028115964,0.55,2909.5,2908.4,0.01]
[1731028116171,0.8333,2909.4,2908.2,0.01]
[1731028116469,0.01,2909.9,2908.0,4.06544052]
[1731028116470,0.7835,2909.2,2908.0,4.06544052]
[1731028116665,0.7835,2909.2,2908.0,4.47576804]
[1731028116894,0.55,2909.1,2908.0,4.05544052]
[1731028117062,0.7835,2909.2,2908.0,4.05544052]
[1731028117268,0.7835,2909.2,2907.8,0.1378347]
[1731028117269,0.56,2908.9,2907.8,0.1378347]
[1731028117575,0.7797,2908.6,2907.8,0.1378347]
[1731028118276,0.43397,2908.8,2907.8,0.1378347]
[1731028118277,0.55,2908.3,2907.8,0.1378347]
[1731028118613,0.808,2908.2,2907.8,0.1378347]
[1731028119171,0.55,2908.1,2907.8,0.1378347]
[1731028119370,0.55,2907.9,2907.8,0.1378347]
[1731028119693,1.5488,2907.9,2907.8,0.1378347]
[1731028120001,1.358,2907.9,2907.8,0.1378347]
[1731028120303,0.808,2907.8,2906.6,0.625]
[1731028120508,0.808,2907.6,2906.6,0.625]
[1731028120678,0.55,2907.5,2906.6,0.625]
[1731028121012,0.808,2907.2,2906.6,0.625]
[1731028121598,0.55,2907.5,2906.1,2.12406127]
[1731028121599,0.808,2906.7,2906.1,2.12406127]
[1731028121812,0.55,2906.4,2905.2,0.01]
[1731028122111,0.808,2906.3,2905.2,4.06544052]
[1731028122311,0.808,2906.3,2905.3,0.40654405]
[1731028122993,0.808,2906.3,2905.6,4.05544052]
[1731028123200,0.8311,2907.4,2906.1,0.01]
[1731028123399,0.8311,2907.4,2905.6,3.01]
[1731028123715,0.8325,2906.9,2905.2,0.01]
[1731028123876,0.8325,2906.9,2905.5,0.01]
[1731028124206,0.8325,2906.7,2905.2,0.01]
[1731028124509,0.55,2906.4,2904.9,0.1478347]
[1731028124680,0.7666,2906.1,2904.9,0.60061663]
[1731028124884,0.55,2906.0,2904.9,0.60061663]
[1731028125197,0.7666,2905.9,2905.0,0.06883904]
[1731028125893,0.7666,2905.9,2905.3,0.01]
[1731028126096,0.7666,2905.9,2905.5,0.01]
[1731028126306,0.8037,2907.1,2905.5,0.01]
[1731028126521,0.8037,2907.0,2905.5,4.38998456]
[1731028126688,0.8037,2907.0,2905.7,0.01]
[1731028127010,0.8037,2907.0,2905.8,0.06881562]
[1731028127219,0.8037,2907.0,2906.0,0.01]
[1731028127419,0.8037,2907.0,2906.0,0.07880779]
[1731028127577,0.8037,2907.0,2906.3,4.37998456]
[1731028127777,0.8037,2907.0,2906.5,0.01]
[1731028127988,0.8037,2907.0,2906.5,0.0787987]
[1731028128205,0.7899,2907.8,2906.8,0.01]
[1731028128888,0.7899,2907.8,2906.7,4.37998456]
[1731028128889,0.7899,2907.8,2907.0,0.01]
[1731028130287,0.7899,2907.8,2907.1,4.37998456]
[1731028130974,0.7899,2907.8,2907.1,4.38998456]
[1731028132289,0.7859,2908.4,2907.3,0.01]
[1731028132607,0.7859,2908.4,2907.4,0.01]
[1731028132807,0.7859,2908.4,2907.3,0.44587611]
[1731028133010,0.7859,2908.4,2907.4,0.01]
[1731028133781,0.7859,2908.4,2907.5,4.37998456]
[1731028133977,0.7859,2908.4,2907.7,0.01]
[1731028134292,0.7859,2908.4,2907.9,4.37998456]
[1731028134494,0.7859,2908.4,2907.7,0.01]
[1731028135213,0.7859,2908.4,2907.7,0.07877343]
[1731028135419,0.7859,2908.4,2907.7,0.01]
[1731028135619,0.7859,2908.4,2907.5,4.38998456]
[1731028135811,0.7859,2908.4,2907.7,0.01]
[1731028136615,0.7859,2908.4,2907.6,0.43899846]
[1731028136824,0.7859,2908.4,2907.7,0.01]
[1731028138043,0.7859,2908.4,2907.7,0.07877331]
[1731028138356,0.7859,2908.4,2907.9,4.37998456]
[1731028138512,0.7859,2908.4,2908.0,0.06876595]
[1731028139613,0.7859,2908.4,2907.9,4.37998456]
[1731028141610,0.7783,2909.7,2908.3,4.38998456]
[1731028141844,0.7783,2909.7,2908.4,0.06875337]
[1731028142048,0.7783,2909.7,2908.3,4.38998456]
[1731028142249,0.7783,2909.7,2908.3,4.82898302]
[1731028142559,0.7783,2909.7,2908.6,0.01]
[1731028142707,0.7783,2909.7,2908.7,4.37998456]
[1731028142913,0.7783,2909.7,2908.9,0.01]
[1731028143114,0.7783,2909.7,2909.0,0.06874191]
[1731028143307,0.7783,2909.7,2909.1,4.07870962]
[1731028143537,0.7783,2909.7,2909.2,0.06874191]
[1731028143726,0.7783,2909.7,2909.3,0.01]
[1731028144022,0.7691,2911.1,2909.5,4.07870962]
[1731028144322,0.7691,2910.4,2908.6,16.30870962]
[1731028144547,0.7691,2910.4,2908.7,0.25478345]
[1731028145212,0.7691,2910.4,2908.7,0.26478345]
[1731028145417,0.7969,2910.1,2908.7,0.26478345]
[1731028145747,0.55,2910.0,2908.7,0.26478345]
[1731028146051,0.55,2909.6,2908.7,0.25478345]
[1731028146258,0.7576,2909.5,2908.7,0.25478345]
[1731028147122,0.7576,2909.5,2908.7,0.32353374]
[1731028147327,0.7576,2909.5,2908.7,0.25478345]
[1731028148968,0.7576,2909.5,2908.8,0.07874773]
[1731028149249,0.7576,2909.5,2908.8,0.51997181]
[1731028149831,3.46,2910.5,2909.0,4.07870962]
[1731028150152,0.7702,2910.4,2909.4,4.07870962]
[1731028150314,0.7702,2910.4,2909.5,0.06872953]
[1731028150746,0.7702,2910.4,2909.5,0.323069]
[1731028151441,0.7702,2910.4,2909.6,0.01]
[1731028152118,0.7702,2910.4,2909.8,4.07870962]
[1731028152357,0.7702,2910.4,2909.9,0.0687226]
[1731028152923,3.44359456,2911.6,2909.9,0.0687226]
[1731028153119,0.7589,2911.5,2909.8,4.08870962]
[1731028153430,0.7589,2911.4,2909.6,0.01]
[1731028153631,0.8221,2911.3,2909.6,0.01]
[1731028154150,0.8321,2911.3,2909.4,4.08870962]
[1731028154360,0.55,2910.8,2909.4,4.07870962]
[1731028154563,0.55,2910.6,2909.4,4.07870962]
[1731028154854,0.01,2910.8,2909.4,4.07870962]
[1731028154855,0.55,2910.4,2909.4,4.07870962]
[1731028155085,0.8221,2910.3,2909.4,4.07870962]
[1731028155539,0.55,2910.2,2909.4,4.07870962]
[1731028155921,0.7853,2910.1,2909.0,4.07870962]
[1731028161033,0.55,2910.0,2909.0,4.07870962]
[1731028161271,0.769,2909.9,2909.0,4.07870962]
[1731028161445,0.769,2909.7,2908.7,0.01]
[1731028161978,0.769,2909.7,2908.9,0.01]
[1731028162274,0.769,2909.7,2909.0,4.07870962]
[1731028168196,0.769,2909.7,2908.7,0.01]
[1731028168475,0.7763,2909.5,2908.2,4.07870962]
[1731028169041,0.7763,2909.5,2908.2,4.08870962]
[1731028169869,0.55,2909.2,2907.7,0.01]
[1731028170086,0.7619,2909.1,2908.2,0.01]
[1731028170239,0.7619,2909.1,2908.3,4.07870962]
[1731028170442,0.7619,2909.1,2908.7,4.07870962]
[1731028170640,0.7619,2909.1,2908.7,4.48658058]
[1731028170849,0.8276,2909.9,2908.8,0.89924716]
[1731028171047,0.8276,2909.9,2909.3,4.07870962]
[1731028171289,0.8276,2909.9,2909.3,4.08870962]
[1731028171497,0.8276,2910.5,2909.7,4.07870962]
[1731028171781,0.8276,2910.5,2910.3,4.07870962]
[1731028172292,0.8276,2910.5,2909.9,4.07870962]
[1731028172645,0.8276,2910.5,2909.5,4.08870962]
[1731028172846,0.25678892,2910.4,2909.5,4.08870962]
[1731028173358,0.8276,2910.5,2909.5,4.08870962]
[1731028173686,0.8276,2910.5,2909.5,4.07870962]
[1731028174693,0.8276,2910.5,2909.9,4.07870962]
[1731028174897,0.8276,2910.5,2910.0,0.06872081]
[1731028175100,0.8276,2910.5,2909.9,4.07870962]
[1731028175271,0.8276,2910.5,2909.7,0.01]
[1731028175674,0.8276,2910.5,2909.5,4.08870962]
[1731028175917,0.8276,2910.5,2909.7,0.01]
[1731028176222,0.8276,2910.5,2909.5,4.08870962]
[1731028176601,0.8276,2910.5,2909.7,0.01]
[1731028176805,0.8276,2910.5,2909.5,4.08870962]
[1731028177106,0.8276,2910.5,2909.7,0.01]
[1731028177309,0.8276,2910.5,2909.5,4.07870962]
[1731028178005,0.8276,2910.5,2909.7,0.01]
[1731028178331,0.8276,2910.5,2909.5,4.08870962]
[1731028178969,0.8276,2910.5,2909.5,4.07870962]
[1731028180207,0.27694266,2910.7,2909.5,4.07870962]
[1731028180208,0.8075,2910.3,2909.5,4.07870962]
[1731028180894,0.8075,2910.3,2909.3,0.01]
[1731028181094,0.8075,2910.3,2909.1,4.08870962]
[1731028182506,0.55,2910.2,2908.8,0.01]
[1731028182714,0.7972,2910.1,2908.7,4.07870962]
[1731028182872,0.7972,2909.9,2908.7,4.07870962]
[1731028183207,1.49345465,2909.9,2908.8,0.01]
[1731028183373,0.7899,2909.8,2909.2,0.01]
[1731028183803,0.7899,2909.8,2909.1,4.07870962]
[1731028184373,0.7899,2909.8,2909.1,4.08870962]
[1731028184712,0.7899,2909.8,2909.1,4.07870962]
[1731028184907,0.7899,2909.8,2909.2,0.01]
[1731028185214,0.7899,2909.8,2909.1,4.48758058]
[1731028185397,0.7899,2909.8,2909.2,0.87183403]
[1731028185598,0.7899,2910.1,2909.5,4.07870962]
[1731028187301,0.7899,2910.1,2909.6,0.06872646]
[1731028187512,0.7899,2910.1,2909.5,4.07870962]
[1731028187674,0.7899,2910.1,2909.6,0.06872646]
[1731028188022,0.8315,2910.5,2909.9,4.07870962]
[1731028188923,0.69625465,2910.7,2910.0,0.7604]
[1731028189218,1.52195465,2910.8,2910.0,0.82911821]
[1731028189387,0.8257,2910.8,2910.3,4.07870962]
[1731028189921,0.8257,2910.8,2910.4,0.07870938]
[1731028190119,0.8288,2911.2,2910.7,4.08870962]
[1731028190513,0.8288,2911.2,2910.8,0.06869888]
[1731028190695,0.8288,2911.6,2911.1,4.07870962]
[1731028190893,1.75703903,2912.3,2910.8,0.06869888]
[1731028190894,1.52505465,2912.1,2911.6,0.01]
[1731028191123,0.8288,2912.1,2912.0,4.07870962]
[1731028191418,0.8288,2912.1,2911.6,4.08870962]
[1731028191628,0.8288,2912.1,2911.6,4.07870962]
[1731028191939,0.8288,2912.1,2911.7,0.01]
[1731028192080,1.07373889,2912.7,2911.7,0.07867743]
[1731028192405,0.17699935,2912.6,2911.7,0.07867743]
[1731028192796,0.17699935,2912.6,2911.7,0.01]
[1731028193183,0.17699935,2912.6,2912.0,4.07870962]
[1731028193419,0.7989,2912.7,2912.0,4.07870962]
[1731028195295,0.7989,2912.7,2912.1,0.01]
[1731028195726,0.7989,2912.7,2911.6,4.08870962]
[1731028196087,0.26836091,2913.0,2911.2,4.08870962]
[1731028196088,0.7956,2912.5,2911.2,4.08870962]
[1731028196390,0.7956,2912.5,2911.5,0.01]
[1731028196595,0.7956,2912.5,2911.6,4.07870962]
[1731028199693,0.7956,2912.5,2911.7,0.06867954]
[1731028199993,0.7956,2912.5,2911.6,4.07870962]
[1731028200303,0.7956,2912.5,2911.7,0.01]
[1731028201111,0.7956,2912.5,2911.7,0.07867527]
[1731028201303,0.7956,2912.5,2911.8,0.41573849]
[1731028201510,0.7956,2912.5,2912.0,4.07870962]
[1731028201712,0.757,2913.4,2912.4,4.07870962]
[1731028202042,0.757,2913.4,2912.8,4.07870962]
[1731028202199,0.757,2913.4,2912.8,4.08870962]
[1731028202597,0.757,2913.4,2912.8,0.01]
[1731028202903,0.757,2913.4,2912.5,0.01]
[1731028203921,0.757,2913.4,2912.5,0.07865585]
[1731028204116,0.757,2913.4,2912.6,0.41573655]
[1731028204321,0.757,2913.4,2912.8,4.07870962]
[1731028204495,0.757,2913.4,2912.9,0.06865025]
[1731028204693,0.757,2913.4,2912.8,4.07870962]
[1731028204942,0.757,2913.4,2912.8,0.01]
[1731028205230,0.757,2913.4,2912.6,0.01]
[1731028205416,0.757,2913.4,2912.8,0.01]
[1731028205622,0.757,2913.4,2912.6,0.01]
[1731028205805,0.757,2913.4,2912.8,0.01]
[1731028206813,0.757,2913.4,2912.6,0.40887096]
[1731028207007,0.757,2913.4,2912.5,0.01]
[1731028207210,0.757,2913.4,2912.3,0.01]
[1731028207449,0.757,2913.4,2912.5,0.01]
[1731028208268,0.757,2913.4,2912.7,0.01]
[1731028209102,0.757,2913.4,2912.5,0.01]
[1731028209628,0.757,2913.4,2912.3,0.01]
[1731028209845,0.757,2913.4,2912.1,12.24]
[1731028210005,0.757,2913.4,2912.0,4.07870962]
[1731028210206,0.757,2913.4,2911.9,0.01]
[1731028210207,0.757,2913.4,2912.5,0.8113]
[1731028210511,0.757,2913.4,2912.8,0.01]